fUST/lending_fUST_20250307
["ID","MTS","AMOUNT","RATE_DAILY","PERIOD"]
[355604029,1741359044287,-222000.0,0.000493,2]
[355604030,1741359044296,-156.58,0.000493,120]
[355604031,1741359044307,-150.0,0.000493,120]
[355604032,1741359044316,-1000.0,0.000493,21]
[355604033,1741359044326,-1000.0,0.000493,21]
[355604034,1741359044335,-160.89,0.000493,120]
[355604035,1741359044345,-622.9,0.00049315,7]
[355604036,1741359044354,-500.0,0.00049315,120]
[355604037,1741359044363,-500.0,0.00049315,120]
[355604038,1741359044373,-500.0,0.00049315,120]
[355604039,1741359044383,-500.0,0.00049315,120]
[355604040,1741359044393,-500.0,0.00049315,120]
[355604041,1741359044402,-500.0,0.00049315,120]
[355604042,1741359044412,-500.0,0.00049315,120]
[355604043,1741359044421,-500.0,0.00049315,120]
[355604044,1741359044431,-376.77978971,0.00049315,120]
[355604045,1741359044442,-1198.19,0.00049315,120]
[355604046,1741359044452,-4441.96,0.00049315,120]
[355604047,1741359044462,-4441.96,0.00049315,120]
[355604048,1741359044473,-4441.96,0.00049315,120]
[355604049,1741359044482,-4441.96,0.00049315,120]
[355604050,1741359044492,-4441.96,0.00049315,120]
[355604051,1741359044502,-4441.96,0.00049315,120]
[355604052,1741359044513,-4441.96,0.00049315,120]
[355604053,1741359044529,-4441.96,0.00049315,120]
[355604054,1741359044538,-4441.96,0.00049315,120]
[355604055,1741359044548,-4441.96,0.00049315,120]
[355604056,1741359044558,-4441.96,0.00049315,120]
[355604057,1741359044568,-4441.96,0.00049315,120]
[355604058,1741359044577,-4441.96,0.00049315,120]
[355604059,1741359044586,-4441.96,0.00049315,120]
[355604060,1741359044598,-4441.96,0.00049315,120]
[355604061,1741359044608,-4441.96,0.00049315,120]
[355604062,1741359044617,-4441.96,0.00049315,120]
[355604063,1741359044626,-4441.96,0.00049315,120]
[355604064,1741359044636,-4441.96,0.00049315,120]
[355604065,1741359044645,-4441.96,0.00049315,120]
[355604066,1741359044654,-4441.96,0.00049315,120]
[355604067,1741359044663,-4441.96,0.00049315,120]
[355604068,1741359044672,-4441.96,0.00049315,120]
[355604069,1741359044681,-4441.98580263,0.00049315,120]
[355604070,1741359044690,-500.0,0.00049316,2]
[355604071,1741359044699,-200.0,0.00049318,120]
[355604072,1741359044708,-561.69848354,0.00049342,95]
[355604073,1741359044718,-200.0,0.00049351,120]
[355604074,1741359044728,-500.0,0.0004939,15]
[355604075,1741359044738,-4038.07809558,0.00049392,2]
[355604076,1741359044747,-1053281.10692977,0.000494,120]
[355604077,1741359044805,-3093.41377646,0.000494,120]
[355604078,1741359044873,-36547.99999998,0.000494,120]
[355604079,1741359044885,-171349.50074368,0.000494,120]
[355604080,1741359045086,-398.0,0.00023715,2]
[355604081,1741359045095,-500.0,0.000248,2]
[355604082,1741359045103,-398.0,0.00026715,2]
[355604083,1741359045112,-53.97215486,0.00030279,5]
[355604084,1741359045123,-946.02784514,0.00030279,5]
[355604085,1741359045132,-500.0,0.000354,5]
[355604086,1741359045142,-651.89176613,0.00040298,5]
[355604087,1741359045151,-1000.0,0.00040879,5]
[355604088,1741359045160,-158.0,0.00048,90]
[355604089,1741359045169,-5764.77787511,0.000494,120]
[355604118,1741360007185,-1756.88835604,0.00022919,20]
[355604119,1741360007207,-203.38747373,0.00023285,4]
[355604120,1741360007227,-535.89659178,0.00023385,2]
[355604121,1741360007248,-398.0,0.00023723,2]
[355604122,1741360007269,-398.0,0.00023723,2]
[355604123,1741360007290,-398.0,0.00026723,2]
[355604124,1741360007311,-398.0,0.00026723,2]
[355604125,1741360007333,-1246.6760289,0.00028809,2]
[355604126,1741360007353,-175.5298,0.00029291,2]
[355604127,1741360007376,-300.0,0.00029722,2]
[355604128,1741360007396,-398.0,0.00029723,2]
[355604129,1741360007416,-398.0,0.00029723,2]
[355604130,1741360007437,-250.0,0.00029943,2]
[355604131,1741360007456,-646.6929635,0.0003,7]
[355604132,1741360101538,-153.62612763,0.00027843,2]
[355604133,1741360101560,-562.64676724,0.0003,7]
[355604134,1741360101581,-200.0,0.0003,7]
[355604135,1741360101603,-200.0,0.0003,7]
[355604136,1741360101631,-196.2997482,0.00030111,120]
[355604137,1741360101662,-160.0,0.00031462,2]
[355604138,1741360101685,-400.0,0.00031549,2]
[355604139,1741360101708,-15555.67399697,0.0003155,2]
[355604140,1741360101730,-160.0,0.0003155,2]
[355604141,1741360101751,-416.66666667,0.0003155,2]
[355604142,1741360101772,-1209.33973074,0.000318,7]
[355604143,1741360101796,-10399.52649593,0.000319,6]
[355604144,1741360101820,-1009.0,0.00032,90]
[355604145,1741360101842,-168.0,0.00032054,2]
[355604146,1741360101868,-500.0,0.000322,5]
[355604147,1741360101893,-190.369522,0.00032711,2]
[355604148,1741360101921,-398.0,0.00032723,2]
[355604149,1741360101946,-398.0,0.00032723,2]
[355604150,1741360101969,-153.62612763,0.00032843,2]
[355604151,1741360101990,-1088.05588884,0.000336,7]
[355604152,1741360102011,-260.0,0.00033949,2]
[355604153,1741360102035,-810.62,0.00034,2]
[355604154,1741360106052,268.3953007,0.000322,5]
[355604155,1741360113764,794.68014387,0.00031954,2]
[355604156,1741360121251,-246.02575914,0.000353,5]
[355604157,1741360121273,-398.0,0.00035723,2]
[355604158,1741360121294,-398.0,0.00035723,2]
[355604159,1741360121316,-500.0,0.0003589,2]
[355604160,1741360130369,-1151.34453196,0.000362,98]
[355604161,1741360137502,200.0,0.0003,120]
[355604163,1741360139726,24900.0,0.00036752,2]
[355604164,1741360140677,200.0,0.0003,120]
[355604165,1741360142700,200.0,0.0003,120]
[355604166,1741360143385,200.0,0.0003,120]
[355604167,1741360144984,729.55,0.00034,2]
[355604168,1741360153264,200.0,0.00037,120]
[355604169,1741360159599,200.0,0.00037,120]
[355604170,1741360174139,200.0,0.00037,30]
[355604171,1741360185803,200.0,0.00037,15]
[355604172,1741360195314,200.0,0.00037,10]
[355604174,1741360218198,200.0,0.00037,2]
[355604175,1741360219359,200.0,0.00037,2]
[355604177,1741360220896,200.0,0.00037,2]
[355604178,1741360225458,200.0,0.00037,4]
[355604251,1741360240364,-153.0,0.00037124,2]
[355604252,1741360240374,-153.0,0.00037124,2]
[355604253,1741360240383,-153.0,0.00037124,2]
[355604254,1741360240392,-153.0,0.00037124,2]
[355604255,1741360240402,-794.68014387,0.00037375,2]
[355604256,1741360240411,-416.66666667,0.00037375,2]
[355604257,1741360240421,-764.60228497,0.00037375,2]
[355604258,1741360240918,-14791.071712,0.00037375,2]
[355604259,1741360240928,-153.62612763,0.00037843,2]
[355604260,1741360240938,-1151.34453193,0.00038313,110]
[355604261,1741360240948,-10000.0,0.00039157,2]
[355604262,1741360240958,-2188.67,0.000399,7]
[355604263,1741360240968,-2000.0,0.0004,15]
[355604264,1741360240979,-2000.0,0.0004,15]
[355604265,1741360240991,-10000.0,0.00040367,3]
[355604266,1741360241001,-160.0,0.00040367,3]
[355604267,1741360241012,-223.62368203,0.00040367,3]
[355604268,1741360241025,-170.118,0.000406,58]
[355604269,1741360241035,-500.0,0.00041095,7]
[355604270,1741360241045,-500.0,0.00041211,2]
[355604271,1741360241054,-500.0,0.00041643,7]
[355604272,1741360241064,-500.0,0.00042191,7]
[355604273,1741360241073,-160.0,0.00042191,7]
[355604274,1741360241084,-500.0,0.00042633,10]
[355604275,1741360241093,-500.0,0.00042739,7]
[355604276,1741360241103,-794.68014387,0.00042796,28]
[355604277,1741360241113,-500.0,0.00043287,7]
[355604278,1741360241123,-500.0,0.00043835,7]
[355604279,1741360241132,-500.0,0.00044383,7]
[355604280,1741360241142,-500.0,0.00044931,7]
[355604281,1741360241152,-1151.34453193,0.00045175,120]
[355604282,1741360241162,-500.0,0.00045479,7]
[355604283,1741360241172,-500.0,0.00046027,7]
[355604284,1741360241183,-500.0,0.00046532,2]
[355604285,1741360241193,-500.0,0.00046575,7]
[355604286,1741360241202,-500.0,0.00047123,7]
[355604287,1741360241212,-180.52993917,0.00047666,2]
[355604288,1741360241222,-478.34875866,0.00047671,7]
[355604289,1741360241232,-151.0,0.00047745,2]
[355604290,1741360241241,-240.09,0.00047746,30]
[355604291,1741360241252,-3371.90313304,0.00047755,4]
[355604292,1741360241262,-207.9,0.00047755,30]
[355604293,1741360241276,-264.72,0.00047755,30]
[355604294,1741360241286,-220.6,0.00047764,30]
[355604295,1741360241296,-183.83,0.00047764,30]
[355604296,1741360241306,-153.19,0.00047764,30]
[355604297,1741360241315,-766.0,0.00047764,30]
[355604298,1741360241325,-17210.93,0.00047764,10]
[355604299,1741360241334,-14342.44,0.00047764,10]
[355604300,1741360241344,-6743.80626608,0.00047765,4]
[355604301,1741360241354,-500.0,0.00047773,7]
[355604302,1741360241363,-500.0,0.00047773,10]
[355604303,1741360241374,-500.0,0.00047773,2]
[355604304,1741360241383,-281.0,0.00047773,3]
[355604305,1741360241392,-500.0,0.00047773,10]
[355604306,1741360241402,-500.01596826,0.00047773,10]
[355604307,1741360241411,-500.0,0.00047773,10]
[355604308,1741360241420,-500.0,0.00047773,120]
[355604309,1741360241430,-1022.07375753,0.00047773,2]
[355604310,1741360241439,-500.0,0.00047773,31]
[355604311,1741360241449,-500.0,0.00047773,120]
[355604312,1741360241459,-1022.07375753,0.00047773,2]
[355604313,1741360241468,-500.0,0.00047773,120]
[355604314,1741360241478,-489.1236265,0.00047773,120]
[355604339,1741360243551,-273.63375336,0.00047773,10]
[355604340,1741360243561,-55.8272185,0.00047773,120]
[355604341,1741360243571,-500.0,0.00047773,31]
[355604342,1741360243580,-500.0,0.00047773,120]
[355604343,1741360243590,-1022.07375753,0.00047773,2]
[355604345,1741360243599,-235.69465969,0.00047773,120]
[355604346,1741360243609,-500.0,0.00047773,120]
[355604348,1741360243618,-715.51916691,0.00047773,2]
[355604350,1741360243630,-306.55459062,0.00047773,2]
[355604352,1741360243640,-500.0,0.00047773,31]
[355604354,1741360243649,-500.0,0.00047773,120]
[355604355,1741360243659,-1022.07375753,0.00047773,2]
[355604357,1741360243668,-500.0,0.00047773,120]
[355604359,1741360243678,-500.0,0.00047773,31]
[355604361,1741360243688,-1022.07375753,0.00047773,2]
[355604363,1741360243697,-500.0,0.00047773,120]
[355604364,1741360243707,-1022.07375753,0.00047773,2]
[355604366,1741360243716,-497.11339927,0.00047773,31]
[355604367,1741360243727,-500.0,0.00047773,120]
[355604368,1741360243736,-1022.07375753,0.00047773,2]
[355604369,1741360243746,-500.0,0.00047773,120]
[355604371,1741360243755,-1022.07375753,0.00047773,2]
[355604373,1741360243765,-500.0,0.00047773,120]
[355604374,1741360243776,-1022.07375753,0.00047773,2]
[355604375,1741360243785,-500.0,0.00047773,120]
[355604376,1741360243795,-500.0,0.00047773,31]
[355604377,1741360243805,-1022.07375753,0.00047773,2]
[355604378,1741360243815,-500.0,0.00047773,120]
[355604379,1741360243829,-500.0,0.00047773,120]
[355604380,1741360243838,-1022.07375753,0.00047773,2]
[355604381,1741360243847,-500.0,0.00047773,120]
[355604382,1741360243857,-1022.07375753,0.00047773,2]
[355604383,1741360243866,-500.0,0.00047773,120]
[355604384,1741360243875,-1022.07375753,0.00047773,2]
[355604385,1741360243884,-500.0,0.00047773,120]
[355604386,1741360243894,-1022.07375753,0.00047773,2]
[355604387,1741360243904,-500.0,0.00047773,120]
[355604388,1741360243917,-1022.07375753,0.00047773,2]
[355604389,1741360243927,-500.0,0.00047773,120]
[355604390,1741360243936,-1022.07375753,0.00047773,2]
[355604391,1741360243947,-500.0,0.00047773,120]
[355604392,1741360243957,-1022.07375753,0.00047773,2]
[355604393,1741360243966,-1022.07375753,0.00047773,2]
[355604394,1741360243976,-237.68704335,0.00047773,120]
[355604395,1741360243986,-500.0,0.00047773,120]
[355604396,1741360243996,-1022.07375753,0.00047773,2]
[355604397,1741360244006,-500.0,0.00047773,120]
[355604398,1741360244016,-1022.07375753,0.00047773,2]
[355604399,1741360244028,-500.0,0.00047773,120]
[355604400,1741360244038,-1022.07375753,0.00047773,2]
[355604401,1741360244048,-500.0,0.00047773,120]
[355604402,1741360244057,-1022.07375753,0.00047773,2]
[355604403,1741360244067,-500.0,0.00047773,120]
[355604404,1741360244077,-1022.07375753,0.00047773,2]
[355604405,1741360244087,-500.0,0.00047773,120]
[355604406,1741360244097,-1022.07375753,0.00047773,2]
[355604407,1741360244106,-500.0,0.00047773,120]
[355604408,1741360244116,-1022.07375753,0.00047773,2]
[355604409,1741360244126,-500.0,0.00047773,120]
[355604410,1741360244136,-500.0,0.00047773,120]
[355604411,1741360244145,-1022.07375753,0.00047773,2]
[355604412,1741360244155,-1022.07375753,0.00047773,2]
[355604413,1741360244164,-1022.07375753,0.00047773,2]
[355604414,1741360244174,-500.0,0.00047773,120]
[355604415,1741360244184,-1022.07375753,0.00047773,2]
[355604416,1741360244193,-1022.07375753,0.00047773,2]
[355604417,1741360244203,-500.0,0.00047773,120]
[355604418,1741360244212,-1022.07375753,0.00047773,2]
[355604419,1741360244222,-1022.07375753,0.00047773,2]
[355604420,1741360244231,-1022.07375753,0.00047773,2]
[355604421,1741360244241,-418.12991302,0.00047773,2]
[355604422,1741360244253,-603.94384451,0.00047773,2]
[355604423,1741360244263,-1022.07375753,0.00047773,2]
[355604424,1741360244272,-1022.07375753,0.00047773,2]
[355604425,1741360244284,-1022.07375753,0.00047773,2]
[355604426,1741360244294,-1022.07375753,0.00047773,2]
[355604427,1741360244303,-1022.07375753,0.00047773,2]
[355604428,1741360244312,-1022.07375753,0.00047773,2]
[355604429,1741360244322,-1022.07375753,0.00047773,2]
[355604430,1741360244332,-1022.07375753,0.00047773,2]
[355604431,1741360244341,-1022.07375753,0.00047773,2]
[355604432,1741360244351,-1022.07375753,0.00047773,2]
[355604433,1741360244361,-1022.07375753,0.00047773,2]
[355604434,1741360244370,-1022.07375753,0.00047773,2]
[355604435,1741360244380,-1022.07375753,0.00047773,2]
[355604436,1741360244390,-447.96361325,0.00047773,2]
[355604437,1741360244546,-574.11014428,0.00047773,2]
[355604438,1741360244557,-259.56443505,0.00047773,2]
[355604439,1741360244569,-762.50932248,0.00047773,2]
[355604440,1741360244579,-1022.07375753,0.00047773,2]
[355604441,1741360244590,-1022.07375753,0.00047773,2]
[355604442,1741360244600,-3371.90313304,0.00047777,4]
[355604443,1741360244609,-999.0,0.00047777,120]
[355604444,1741360244619,-3371.90313304,0.0004783,4]
[355604445,1741360244629,-2835.97659342,0.0004784,3]
[355604446,1741360244641,-938.61963009,0.0004784,3]
[355604462,1741360246405,-4549.8,0.0004784,3]
[355604464,1741360246418,-834.81515278,0.0004784,3]
[355604466,1741360246431,-840.78862371,0.0004784,3]
[355604467,1741360246441,-500.0,0.00047873,10]
[355604468,1741360246451,-500.0,0.00047873,10]
[355604469,1741360246460,-1468.87879695,0.00048,90]
[355604470,1741360246479,-1419.81231565,0.00048,90]
[355604473,1741360246491,-3111.3088874,0.00048,90]
[355604475,1741360246500,-472.88534711,0.00048,120]
[355604477,1741360246510,-200.0,0.00048,120]
[355604479,1741360246519,-200.0,0.00048,120]
[355604481,1741360246533,-200.0,0.00048,120]
[355604483,1741360246543,-180.52993915,0.0004805,2]
[355604485,1741360246552,-161.67582634,0.00048217,28]
[355604487,1741360246565,-633.00431753,0.00048217,28]
[355604489,1741360246574,-999.0,0.00048325,120]
[355604490,1741360246584,-180.52993915,0.00048433,2]
[355604491,1741360246593,-1285.09911999,0.00048716,2]
[355604492,1741360246603,-239.1741693,0.0004879,10]
[355604493,1741360247279,398.0,0.00025516,2]
[355604494,1741360247719,398.0,0.00028516,2]
[355604495,1741360248162,398.0,0.00031516,2]
[355604496,1741360248661,398.0,0.00034516,2]
[355604497,1741360300166,5507.06678537,0.00037,7]
[355604498,1741360330473,437.73,0.00034,2]
[355604499,1741360335667,170.0,0.00037,30]
[355604500,1741360377193,170.0,0.00037,45]
[355604507,1741360494633,1717.0,0.00037,28]
[355604509,1741360516588,393.96,0.00034,2]
[355604510,1741360557054,245.099,0.00026688,2]
[355604511,1741360557482,150.0,0.00029688,2]
[355604512,1741360558032,150.0,0.00032688,2]
[355604513,1741360558634,150.0,0.00035688,2]
[355604514,1741360580258,398.0,0.00026688,2]
[355604515,1741360581395,398.0,0.00029688,2]
[355604516,1741360581969,398.0,0.00032688,2]
[355604517,1741360582433,398.0,0.00035688,2]
[355604518,1741360598845,1953.0,0.00026688,2]
[355604519,1741360599350,1953.0,0.00029688,2]
[355604520,1741360599873,1953.0,0.00032688,2]
[355604521,1741360601607,2000.0,0.00037,28]
[355604522,1741360602527,1953.0,0.00035688,2]
[355604523,1741360603178,200.0,0.00037,30]
[355604524,1741360604926,548.693,0.00026688,2]
[355604525,1741360605949,540.0,0.00029688,2]
[355604526,1741360606442,540.0,0.00032688,2]
[355604527,1741360607013,540.0,0.00035688,2]
[355604528,1741360610415,2000.0,0.00037,28]
[355604529,1741360616175,2000.0,0.00037,28]
[355604530,1741360647913,2328.549,0.00026688,2]
[355604531,1741360648526,2275.0,0.00029688,2]
[355604532,1741360649005,2275.0,0.00032688,2]
[355604533,1741360649495,2275.0,0.00035688,2]
[355604534,1741360667422,170.0,0.00037,60]
[355604535,1741360703552,354.56,0.000343,2]
[355604537,1741360724654,500.0,0.0003589,2]
[355604538,1741360744254,2000.0,0.00037,28]
[355604539,1741360749610,2000.0,0.00037,28]
[355604540,1741360815155,273.0,0.00037,28]
[355604541,1741360827357,2000.0,0.00037,28]
[355604542,1741360829253,2000.0,0.00037,28]
[355604543,1741360831122,2000.0,0.00037,28]
[355604544,1741360832652,2000.0,0.00037,28]
[355604545,1741360834297,2000.0,0.00037,28]
[355604546,1741360838571,398.0,0.00026688,2]
[355604547,1741360839009,398.0,0.00029688,2]
[355604548,1741360839479,398.0,0.00032688,2]
[355604549,1741360840029,398.0,0.00035688,2]
[355604550,1741360890824,319.11,0.000345,2]
[355604551,1741360983550,2000.0,0.00037,28]
[355604553,1741360988474,2000.0,0.00037,28]
[355604554,1741360993184,2000.0,0.00037,28]
[355604555,1741360997314,2000.0,0.00037,28]
[355604556,1741361003231,2000.0,0.00037,28]
[355604557,1741361007648,2000.0,0.00037,28]
[355604558,1741361011845,2000.0,0.00037,28]
[355604559,1741361016539,2000.0,0.00037,28]
[355604560,1741361032880,2000.0,0.00037,28]
[355604561,1741361042215,391.54479362,0.00025,4]
[355604562,1741361060770,1000.0,0.00037,2]
[355604563,1741361078279,287.2,0.000345,2]
[355604564,1741361101032,1000.0,0.00037,2]
[355604566,1741361138800,398.0,0.00026688,2]
[355604567,1741361139313,398.0,0.00029688,2]
[355604568,1741361139782,398.0,0.00032688,2]
[355604569,1741361140289,398.0,0.00035688,2]
[355604573,1741361264207,258.48,0.000345,2]
[355604575,1741361293041,12839.52716757,0.0002,3]
[355604576,1741361312611,4036.46065,0.0001711,2]
[355604577,1741361313650,9201.57279592,0.00035,2]
[355604578,1741361316838,23232.3,0.000145,2]
[355604579,1741361316866,18719.78683215,0.000145,2]
[355604580,1741361317878,555.49539481,0.00015,4]
[355604581,1741361319602,300.0,0.0001,2]
[355604642,1741361438325,-150.22869317,0.0002,7]
[355604643,1741361438335,-272.8348069,0.0002045,30]
[355604644,1741361438346,-678.31550733,0.0003,30]
[355604733,1741361446366,-397.0,0.0003,30]
[355604735,1741361446420,-4500.00000001,0.0003,30]
[355604911,1741362632738,-1950.0,0.00019305,2]
[355604913,1741362632749,-2175.46121858,0.000195,5]
[355604915,1741362632759,-8928.0,0.000195,2]
[355604917,1741362632768,-689.96304698,0.000199,2]
[355604919,1741362632778,-799.36383127,0.00024666,2]
[355604922,1741362632788,-161.1884485,0.00025549,2]
[355604924,1741362632798,-10144.50272477,0.000259,4]
[355604925,1741362632807,-214.0,0.00026688,2]
[355604927,1741362632817,-540.0,0.00026688,2]
[355604929,1741362632826,-1953.0,0.00026688,2]
[355604931,1741362632836,-2275.0,0.00026688,2]
[355604933,1741362632845,-11693.5718046,0.00026942,2]
[355604935,1741362632855,-1886.819235,0.00027004,2]
[355604937,1741362632865,-206.4210659,0.00027071,2]
[355604938,1741362632875,-264.27366,0.00027382,2]
[355604939,1741362632884,-207.0,0.00027397,2]
[355604940,1741362632893,-207.0,0.00027397,2]
[355604941,1741362632903,-250.0,0.00028161,2]
[355604942,1741362632912,-150.0,0.00029688,2]
[355604944,1741362632921,-540.0,0.00029688,2]
[355604946,1741362632931,-1953.0,0.00029688,2]
[355604947,1741362632941,-2275.0,0.00029688,2]
[355604950,1741362632953,-10506.23364805,0.0003,30]
[355604951,1741362632962,-669.25214048,0.00030311,2]
[355604954,1741362632971,-1042.86131603,0.0003086,2]
[355604955,1741362632981,-21015.99561611,0.00031475,5]
[355604957,1741362632990,-177.88113229,0.00032558,2]
[355604959,1741362632999,-267.18695431,0.00032658,2]
[355604961,1741362633009,-150.0,0.00032688,2]
[355604963,1741362633018,-540.0,0.00032688,2]
[355604965,1741362633028,-1953.0,0.00032688,2]
[355604967,1741362633038,-974.7369472,0.00032688,2]
[355604970,1741362633050,-1300.2630528,0.00032688,2]
[355604972,1741362633060,-500.0,0.00032829,5]
[355604974,1741362633070,-160.0,0.00032894,2]
[355604976,1741362633080,-500.0,0.00033,12]
[355604978,1741362633090,-177.88113229,0.00033229,2]
[355604980,1741362633099,-177.88113229,0.000339,2]
[355604982,1741362633109,-380.36309644,0.00033973,5]
[355604988,1741362633161,-119.63690356,0.00033973,5]
[355604989,1741362633171,-207.09698151,0.00033973,5]
[355604992,1741362633182,-504.28545891,0.00033973,5]
[355604994,1741362633192,-500.0,0.00033973,5]
[355604996,1741362633207,-500.0,0.00033973,2]
[355604998,1741362633219,-500.0,0.00033973,5]
[355605000,1741362633229,-500.0,0.00033973,5]
[355605002,1741362633238,-500.0,0.00033973,5]
[355605004,1741362633248,-500.0,0.00033973,5]
[355605005,1741362633257,-500.0,0.00033973,5]
[355605007,1741362633266,-366.29968281,0.00033973,5]
[355605009,1741362633276,-500.0,0.00033979,7]
[355605012,1741362633288,-500.0,0.00033979,7]
[355605014,1741362633299,-853.07981807,0.00033979,2]
[355605016,1741362633309,-500.0,0.00033979,7]
[355605018,1741362633319,-500.0,0.00033979,7]
[355605020,1741362633329,-853.07981807,0.00033979,2]
[355605022,1741362633340,-500.0,0.00033979,7]
[355605024,1741362633350,-500.0,0.00033979,7]
[355605026,1741362633361,-853.07981807,0.00033979,2]
[355605028,1741362633372,-853.07981807,0.00033979,2]
[355605030,1741362633383,-500.0,0.00033979,7]
[355605031,1741362633393,-646.5,0.0003398,3]
[355605033,1741362633403,-26699.789942,0.0003398,2]
[355605035,1741362633415,-340.76,0.00033989,2]
[355605037,1741362633425,-340.76,0.00033989,2]
[355605039,1741362633436,-340.76,0.00033989,2]
[355605041,1741362633449,-340.76,0.00033989,2]
[355605042,1741362633461,-340.76,0.00033989,2]
[355605044,1741362633472,-340.76,0.00033989,2]
[355605045,1741362633483,-340.76,0.00033989,2]
[355605046,1741362633493,-340.76,0.00033989,2]
[355605047,1741362633504,-340.76,0.00033989,2]
[355605048,1741362633515,-13349.894971,0.0003399,2]
[355605049,1741362633526,-215.49,0.0003399,3]
[355605050,1741362633537,-69573.8257145,0.0003399,2]
[355605051,1741362633550,-1276.36131369,0.0003399,2]
[355605060,1741362638730,-250.0,0.00026688,2]
[355605061,1741362638742,-150.0,0.00029688,2]
[355605062,1741362638752,-150.0,0.00032688,2]
[355605064,1741362638762,-853.07981807,0.00033979,2]
[355605066,1741362638771,-234.12984469,0.00033979,7]
[355605079,1741362638903,-265.87015531,0.00033979,7]
[355605081,1741362638913,-473.76870434,0.00033979,7]
[355605083,1741362638923,-853.07981807,0.00033979,2]
[355605084,1741362638933,-500.0,0.00033979,7]
[355605085,1741362638942,-853.07981807,0.00033979,2]
[355605087,1741362638955,-853.07981807,0.00033979,2]
[355605088,1741362638965,-853.07981807,0.00033979,2]
[355605089,1741362638975,-500.0,0.00033979,7]
[355605090,1741362638985,-853.07981807,0.00033979,2]
[355605091,1741362639004,-500.0,0.00033979,7]
[355605092,1741362639015,-853.07981807,0.00033979,2]
[355605093,1741362639025,-500.0,0.00033979,7]
[355605094,1741362639035,-853.07981807,0.00033979,2]
[355605095,1741362639046,-500.0,0.00033979,7]
[355605096,1741362639056,-853.07981807,0.00033979,2]
[355605097,1741362639066,-853.07981807,0.00033979,2]
[355605098,1741362639076,-500.0,0.00033979,7]
[355605099,1741362639086,-853.07981807,0.00033979,2]
[355605100,1741362639096,-500.0,0.00033979,7]
[355605101,1741362639108,-853.07981807,0.00033979,2]
[355605102,1741362639119,-596.99583596,0.00033979,7]
[355605103,1741362639130,-853.07981807,0.00033979,2]
[355605104,1741362639141,-853.07981807,0.00033979,2]
[355605105,1741362639151,-853.07981807,0.00033979,2]
[355605106,1741362639160,-853.07981807,0.00033979,2]
[355605107,1741362639170,-853.07981807,0.00033979,2]
[355605108,1741362639181,-853.07981807,0.00033979,2]
[355605109,1741362639191,-853.07981807,0.00033979,2]
[355605110,1741362639205,-853.07981807,0.00033979,2]
[355605111,1741362639216,-853.07981807,0.00033979,2]
[355605112,1741362639225,-853.07981807,0.00033979,2]
[355605113,1741362639235,-853.07981807,0.00033979,2]
[355605114,1741362639245,-853.07981807,0.00033979,2]
[355605116,1741362639255,-853.07981807,0.00033979,2]
[355605118,1741362639264,-853.07981807,0.00033979,2]
[355605120,1741362639275,-853.07981807,0.00033979,2]
[355605122,1741362639285,-853.07981807,0.00033979,2]
[355605123,1741362639295,-853.07981807,0.00033979,2]
[355605124,1741362639305,-853.07981807,0.00033979,2]
[355605125,1741362639315,-853.07981807,0.00033979,2]
[355605126,1741362639325,-853.07981807,0.00033979,2]